[Event "44th Chess Olympiad Open 2022"]
[Site "Chennai"]
[Date "2022.07.30"]
[Round "2.59"]
[White "Neto, Roberto"]
[Black "Salazar Cabezas, Alberto Javier"]
[Result "0-1"]
[ECO "D53"]
[WhiteElo "1663"]
[BlackElo "2155"]
[Annotator "TA"]
[PlyCount "44"]
[EventDate "2022.07.29"]
[EventType "team-tourn"]
[EventCountry "IND"]
[SourceTitle "playchess.com"]
[Source "ChessBase"]
[SourceQuality "1"]
[WhiteTeam "Guyana"]
[BlackTeam "Nicaragua"]
[WhiteTeamCountry "GUY"]
[BlackTeamCountry "NCA"]
[TimeControl "40/5400+30:1800+30"]

{[%evp 11,44,0,0,-79,-86,-85,-7,-31,-17,-66,-64,-89,-96,-92,-52,-92,-100,-125,-129,-111,-69,-99,-105,-107,-114,-150,-137,-360,-365,-412,-384,-462,-433,-656,-654]} 1. d4 {[%emt 0:00:05]} d5 {[%emt 0:00:17]} 2. c4 {[%emt 0:00:08]} e6 {[%emt 0:00:07]} 3. Nc3 {[%emt 0:00:11]} Nf6 {[%emt 0:00:07]} 4. Bg5 {[%emt 0:00:24]} Be7 {[%emt 0:00:08]} 5. Nf3 {[%emt 0:00:22]} O-O {[%emt 0:00:20]} 6. Bxf6 {[%emt 0:01:46]} Bxf6 {[%emt 0:00:09]} 7. e4 {[%emt 0:00:43] D53: Queen's Gambit Declined: 4 Bg5 Be7: Early deviations.} (7. e3 $11 {keeps the balance.}) 7... dxe4 $17 {[%emt 0:00:42]} 8. Nxe4 {[%emt 0:00:14]} Be7 {[%emt 0:01:50]} (8... Nc6 $17 {[%cal Rf6d4]} 9. Nxf6+ Qxf6) 9. Qb3 {[%emt 0:00:44] [#] The position is equal.} a5 $146 {[%emt 0:02:34][%cal Ba7a5,Ba5a4,Ba4a3][%mdl 32]} ({Predecessor:} 9... b6 10. O-O-O Nd7 11. Bd3 a5 12. a3 c6 13. h4 h6 14. g4 Qc7 15. Bc2 b5 {1-0 (40) Palek,M (2233)-Novacek,K (2058) Czech Republic 2010}) 10. O-O-O {[%emt 0:03:34]} (10. a3 $11 {should be considered.}) 10... a4 $15 {[%emt 0:00:49]} 11. Qc2 {[%emt 0:01:46]} a3 {[%emt 0:00:44]} 12. b3 {[%emt 0:01:20]} Na6 {[%emt 0:02:14]} 13. h4 {[%emt 0:02:16]} Nb4 $36 {[%emt 0:00:14][%mdl 2048] White is under strong pressure.} 14. Qd2 {[%emt 0:03:03]} b6 {[%emt 0:02:48]} 15. Bd3 {[%emt 0:06:50]} c5 {[%emt 0:04:45]} 16. dxc5 {[%emt 0:06:37]} bxc5 {[%emt 0:03:19]} 17. Bb1 {[%emt 0:15:52]} Qc7 {[%emt 0:02:04] aiming for ...f5.} 18. Qe3 {[%emt 0:07:48] [#]} f5 $1 {[%emt 0:01:58]} 19. Neg5 {[%emt 0:04:50] This move loses the game for White.} (19. Nc3 $17) 19... Bf6 $19 {[%emt 0:01:13]} 20. Rd2 {[%emt 0:07:07]} e5 {[%emt 0:03:03][%cal Be6e5,Be5e4][%mdl 32] Hoping for ...e4.} 21. Kd1 {[%emt 0:09:33]} Ra6 {[%emt 0:04:48] ...e4 is the strong threat.} 22. Ke2 {[%emt 0:03:56]} (22. Ne1 $142 e4 23. g3) 22... e4 {[%emt 0:01:38] Weighted Error Value: White=0.58/Black=0.11 (very precise)} 0-1

[Event "44th Chess Olympiad Open 2022"]
[Site "Chennai"]
[Date "2022.07.30"]
[Round "2.60"]
[White "Thing, Bibek"]
[Black "Muhammed, Shuaau"]
[Result "1-0"]
[ECO "C55"]
[WhiteElo "2260"]
[BlackElo "1987"]
[Annotator "TA"]
[PlyCount "91"]
[EventDate "2022.07.29"]
[EventType "team-tourn"]
[EventCountry "IND"]
[SourceTitle "playchess.com"]
[Source "ChessBase"]
[SourceQuality "1"]
[WhiteTeam "Nepal"]
[BlackTeam "Maldives"]
[WhiteTeamCountry "NEP"]
[BlackTeamCountry "MDV"]
[TimeControl "40/5400+30:1800+30"]

{[%evp 13,91,45,45,22,53,47,48,57,37,14,64,36,29,34,35,36,41,17,17,17,18,0,6,0,0,0,0,-11,-17,-17,-14,-22,-6,-2,-6,-7,0,-3,0,0,0,0,7,5,10,9,57,59,92,79,95,87,187,181,190,185,289,268,442,379,448,325,325,325,325,279,325,325,322,317,428,381,635,636,2229,2289,4818,3160,1369,1326]} 1. e4 {[%emt 0:00:36]} e5 {[%emt 0:00:07]} 2. Nf3 {[%emt 0:00:12]} Nc6 {[%emt 0:00:02]} 3. Bc4 {[%emt 0:00:58]} Nf6 {[%emt 0:00:09]} 4. d3 {[%emt 0:00:39]} Be7 {[%emt 0:00:09]} 5. O-O {[%emt 0:00:34]} O-O {[%emt 0:00:04]} 6. a4 {[%emt 0:00:04][%cal Ba2a4,Ba4a5][%mdl 32]} d5 {[%emt 0:00:16]} 7. exd5 {[%emt 0:00:09]} Nxd5 {[%emt 0:00:04]} 8. Re1 $1 {[%emt 0:00:20] 8.Re1 is better than 8.h3. C55: Two Knights: 4 d3, 4 d4 exd4 5 e5 and Max Lange Attack.} Nb6 {[%emt 0:08:22]} 9. Bb5 {[%emt 0:01:33]} f6 {[%emt 0:02:52]} 10. a5 {[%emt 0:01:24] White is slightly better.} Nd5 {[%emt 0:11:25]} 11. a6 {[%emt 0:01:10] [#]} Kh8 $146 {[%emt 0:16:06]} (11... Nb6 $1 $11) ({Predecessor:} 11... Qd6 12. Nbd2 bxa6 13. Ne4 Qe6 14. Bc4 Kh8 15. Nc3 Nxc3 16. bxc3 Qg4 17. h3 Qh5 18. Bxa6 {1-0 (24) Nozdrachev,L (2370)-Sarkar,J (2321) Chess.com INT 2021}) 12. d4 {[%emt 0:03:36]} exd4 {[%emt 0:06:18]} 13. Nxd4 {[%emt 0:10:32]} Nxd4 {[%emt 0:04:19]} 14. Qxd4 {[%emt 0:01:33]} bxa6 $1 {[%emt 0:12:28]} 15. Bd3 {[%emt 0:09:58]} Bb7 {[%emt 0:04:11]} 16. Bd2 {[%emt 0:02:56][%mdl 1024] White has compensation.} f5 {[%emt 0:03:32]} 17. Qc4 {[%emt 0:18:56]} c5 {[%emt 0:07:52]} 18. Ba5 {[%emt 0:07:13]} Qd6 {[%emt 0:02:03]} 19. Nc3 {[%emt 0:02:59]} Bf6 {[%emt 0:02:27]} 20. Bf1 {[%emt 0:08:24]} Bd4 {[%emt 0:05:39] [#] aiming for ...Nf6.} 21. Nxd5 {[%emt 0:10:16]} Bxd5 {[%emt 0:01:11]} 22. Qe2 {[%emt 0:00:20]} ({Wrong is} 22. Bc7 $2 Qd7 23. Qe2 Qxc7 $19) 22... f4 {[%emt 0:03:11] White must now prevent ...f3.} (22... Bxb2 $2 23. Rad1 $18) (22... Rf6 $5 {[%cal Rf6h6]} 23. Bd2 Bxb2 24. Rxa6 Qxa6 25. Qxa6 Rxa6 26. Bxa6 Bd4 $15) 23. Qxa6 {[%emt 0:11:42]} (23. Qd3 {with more complications.} f3 24. g3 Qh6 25. Qd2) 23... Qxa6 {[%emt 0:02:59]} 24. Bxa6 {[%emt 0:00:02]} Bxb2 {[%emt 0:01:05]} 25. Rad1 {[%emt 0:00:05]} Bg8 {[%emt 0:01:09]} 26. Re7 {[%emt 0:01:36]} Rfe8 {[%emt 0:02:28]} 27. Rc7 {[%emt 0:01:51]} Re5 {[%emt 0:01:57]} 28. h3 {[%emt 0:01:10]} c4 {[%emt 0:00:38]} 29. Bb4 {[%emt 0:00:48]} Re2 {[%emt 0:00:28]} (29... Rae8 $11 {is superior.}) 30. c3 $14 {[%emt 0:00:42]} h6 {[%emt 0:00:47] White now steadily converts the win.} 31. Rdd7 {[%emt 0:00:50] White is more active.} f3 {[%emt 0:01:07]} 32. gxf3 {[%emt 0:00:27]} Re6 {[%emt 0:00:22]} (32... Re1+ $16 {keeps fighting.} 33. Kh2 Bc1) 33. Bb7 $18 {[%emt 0:01:09]} ({Weaker is} 33. Bxc4 Re1+ 34. Kh2 Bxc4 35. Rxc4 a5 $11) 33... Rg6+ {[%emt 0:00:05]} 34. Kf1 {[%emt 0:00:37]} Re8 {[%emt 0:00:57]} (34... Rb8 $142) 35. Be4 {[%emt 0:00:07]} Rg5 {[%emt 0:00:29]} (35... Rge6 36. Rxa7 Bc1 37. Rxg7 Bg5 38. Rxg8+ Kxg8) 36. h4 {[%emt 0:00:35]} Rge5 {[%emt 0:00:40]} 37. Rxg7 {[%emt 0:00:49]} a5 {[%emt 0:00:03] [#]} 38. Rg6 $1 {[%emt 0:01:43]} R5e6 {[%emt 0:00:36]} 39. Rxe6 {[%emt 0:00:26]} Rxe6 {[%emt 0:00:13]} 40. Bxa5 {[%emt 0:00:07]} Ra6 {[%emt 0:00:48]} 41. Bb4 {[%emt 0:30:44]} Ra1+ {[%emt 0:30:02]} 42. Ke2 {[%emt 0:00:56]} Rh1 $2 {[%emt 0:00:00]} (42... Ra2) 43. Rb7 {[%emt 0:00:00] White is clearly winning.} Ba1 {[%emt 0:00:00]} 44. Kd2 {[%emt 0:00:00] Strongly threatening Bc5.} Bb2 {[%emt 0:00:00]} 45. Bc5 {[%emt 0:00:00][%cal Rc5d4]} Bc1+ {[%emt 0:00:00]} 46. Kc2 {[%emt 0:00:00] Weighted Error Value: White=0.11 (very precise) /Black=0.32} 1-0

[Event "44th Chess Olympiad Open 2022"]
[Site "Chennai"]
[Date "2022.07.30"]
[Round "2.60"]
[White "Bhandari, Kshitiz"]
[Black "Fuad, Ahmed Mufleh"]
[Result "1-0"]
[ECO "A06"]
[WhiteElo "2071"]
[BlackElo "2086"]
[Annotator "TA"]
[PlyCount "58"]
[EventDate "2022.07.29"]
[EventType "team-tourn"]
[EventCountry "IND"]
[SourceTitle "playchess.com"]
[Source "ChessBase"]
[SourceQuality "1"]
[WhiteTeam "Nepal"]
[BlackTeam "Yemen"]
[WhiteTeamCountry "NEP"]
[BlackTeamCountry "YEM"]
[TimeControl "40/5400+30:1800+30"]

{[%evp 9,58,29,29,32,31,31,37,35,43,19,30,26,55,35,199,191,195,171,185,183,194,169,165,143,147,131,144,120,175,173,196,195,276,271,392,379,418,417,593,559,1445,1187,1274,1230,2554,2576,1993,2470,29983,29984,29994]} 1. Nf3 {[%emt 0:00:06]} d5 {[%emt 0:00:20]} 2. b3 {[%emt 0:00:13]} Bg4 {[%emt 0:03:08]} 3. Bb2 {[%emt 0:00:45]} Bxf3 {[%emt 0:00:28]} 4. exf3 {[%emt 0:00:18]} Nd7 {[%emt 0:00:30]} 5. f4 {[%emt 0:00:21]} Ngf6 {[%emt 0:00:30]} 6. g3 {[%emt 0:00:06] A06: Réti Opening: 1 Nf3 d5.} e6 {[%emt 0:00:30]} 7. Bg2 {[%emt 0:00:06]} Bd6 {[%emt 0:04:29] 7...g6 is vanishing.} 8. O-O {[%emt 0:02:00] White is slightly better.} O-O {[%emt 0:03:28]} 9. Re1 {[%emt 0:01:02]} c6 {[%emt 0:01:40]} 10. d4 {[%emt 0:00:38] [#]} Qc7 $146 {[%emt 0:02:27]} ({Predecessor:} 10... b5 11. Nd2 b4 12. Nf3 Qb6 13. Ne5 Rfd8 14. g4 g6 15. f5 exf5 16. gxf5 Nh5 {0-1 (38) Bromann,T (2378)-Brinck Claussen,B (2260) Denmark 2013}) 11. Nd2 {[%emt 0:00:19]} Bxf4 $2 {[%emt 0:05:23] [#]} 12. gxf4 $18 {[%emt 0:00:06]} Qxf4 {[%emt 0:00:08]} 13. Nf1 {[%emt 0:01:05]} Ne4 {[%emt 0:07:19]} 14. f3 {[%emt 0:00:36][%cal Bf2f3,Bf3f4,Bf4g5][%mdl 32]} Ng5 {[%emt 0:01:40]} 15. Bc1 {[%emt 0:02:23]} Qh4 {[%emt 0:01:00]} 16. Bxg5 {[%emt 0:00:53]} Qxg5 {[%emt 0:00:12]} 17. Qc1 {[%emt 0:00:11]} Qh4 {[%emt 0:00:29]} 18. f4 {[%emt 0:00:30]} g5 {[%emt 0:13:58]} (18... Nf6 $16) 19. fxg5 {[%emt 0:08:50] Hoping for Qe3.} Qxd4+ {[%emt 0:00:26]} 20. Qe3 {[%emt 0:00:04]} Qg7 {[%emt 0:01:01]} (20... Qxe3+ $142 21. Rxe3 a5) 21. Ng3 {[%emt 0:00:28]} d4 {[%emt 0:04:53]} (21... Rad8 $142 22. Rad1 Rde8 23. Qxa7 Qxg5 24. Qxb7 Nf6) 22. Qd2 {[%emt 0:03:39]} Rae8 {[%emt 0:04:55]} 23. Rad1 {[%emt 0:00:30]} e5 {[%emt 0:01:04]} (23... Rd8 {was necessary.} 24. Kh1 a6 25. Qxd4 Qxd4 26. Rxd4 Nc5) 24. Bh3 {[%emt 0:00:06]} Re7 {[%emt 0:07:52]} 25. Bxd7 {[%emt 0:00:12]} Rxd7 {[%emt 0:00:13]} 26. Nh5 {[%emt 0:00:04]} Re8 {[%emt 0:06:18]} 27. Nxg7 {[%emt 0:00:09]} Kxg7 {[%emt 0:00:30]} 28. Qf2 {[%emt 0:00:01][%cal Oe1e5] White threatens Rxe5! and mate.} Re6 {[%emt 0:00:26] [#]} 29. Rxe5 $3 {[%emt 0:00:02]} Kf8 {[%emt 0:00:36] Black got outplayed after the opening.  Weighted Error Value: White=0.09 (flawless) /Black=0.86} (29... Rxe5 30. Qf6+) 1-0

[Event "44th Chess Olympiad Open 2022"]
[Site "Chennai"]
[Date "2022.07.30"]
[Round "2.60"]
[White "Ashraf, Ahmed Ramadan"]
[Black "Lama, Milan"]
[Result "0-1"]
[ECO "B27"]
[WhiteElo "1916"]
[BlackElo "2024"]
[Annotator "TA"]
[PlyCount "83"]
[EventDate "2022.07.29"]
[EventType "team-tourn"]
[EventCountry "IND"]
[SourceTitle "playchess.com"]
[Source "ChessBase"]
[SourceQuality "1"]
[WhiteTeam "Egypt"]
[BlackTeam "Nepal"]
[WhiteTeamCountry "EGY"]
[BlackTeamCountry "NEP"]
[TimeControl "40/5400+30:1800+30"]

{[%evp 17,83,-6,-6,4,6,-16,0,-40,-37,-43,-23,-21,-18,-20,-13,-32,-38,-33,-27,-101,-85,-177,-169,-889,-96,-178,-147,-281,-286,-294,-273,-281,-282,-279,-279,-359,-353,-338,-308,-447,-440,-441,-436,-510,-482,-498,-508,-496,-498,-549,-549,-541,-486,-960,-951,-864,-939,-910,-874,-853,-832,-1113,-1097,-995,-637,-1090,-1074,-954]} 1. e4 {[%emt 0:00:03]} c5 {[%emt 0:00:06]} 2. Nf3 {[%emt 0:00:11]} g6 {[%emt 0:00:28]} 3. c3 {[%emt 0:04:26]} Bg7 {[%emt 0:00:07]} 4. d4 {[%emt 0:00:02]} cxd4 {[%emt 0:00:08]} 5. cxd4 {[%emt 0:00:03]} d5 {[%emt 0:00:26]} 6. e5 {[%emt 0:01:57]} Nc6 {[%emt 0:01:48]} 7. Nc3 {[%emt 0:00:20]} Bg4 {[%emt 0:03:00]} 8. Be2 {[%emt 0:06:24]} Bxf3 {[%emt 0:04:57]} 9. Bxf3 {[%emt 0:06:57]} e6 {[%emt 0:00:16]} 10. O-O {[%emt 0:00:03] The main line 10.0-0 scores better than 10.Be3. B27: Sicilian: 2 Nf3, unusual Black 2nd moves.} Nh6 {[%emt 0:00:56]} 11. Bxh6 {[%emt 0:05:18]} Bxh6 {[%emt 0:00:19]} 12. Na4 {[%emt 0:00:30] [#] Against Qb6. The position is equal.} O-O $146 {[%emt 0:01:28]} ({Predecessor:} 12... Qh4 13. Bg4 O-O 14. g3 Qe7 15. a3 b5 16. Nc3 Rfb8 17. Be2 a6 18. Qd3 Qa7 {½-½ (45) Martinez,A (2181)-Epstein,E (2224) Istanbul 2000}) 13. a3 {[%emt 0:00:55]} Qh4 {[%emt 0:03:22]} 14. Bg4 {[%emt 0:02:30]} Rac8 {[%emt 0:07:35]} 15. g3 {[%emt 0:03:55]} Qe7 {[%emt 0:00:33]} 16. b4 {[%emt 0:01:52]} b6 {[%emt 0:11:42]} 17. f4 {[%emt 0:03:44]} f5 $36 {[%emt 0:06:16][%mdl 2048] Black has the initiative.} 18. exf6 {[%emt 0:10:08]} (18. Be2 $11) 18... Qxf6 $17 {[%emt 0:00:58]} 19. Re1 {[%emt 0:00:24]} (19. Rc1 $17 {is a better defense.}) 19... Nxd4 $19 {[%emt 0:07:27]} 20. Re5 {[%emt 0:05:58] [#]} (20. Kh1) 20... Nf5 $2 {[%emt 0:05:34]} (20... Bxf4 $1 $19 {[%mdl 512] has better winning chances.} 21. Rxe6 (21. gxf4 Qxf4) 21... Nxe6 22. gxf4 Rc4) 21. Qe1 {[%emt 0:03:04]} (21. Qe2 $17 {was necessary.}) 21... Rfe8 {[%emt 0:02:35]} 22. Nc3 {[%emt 0:00:51]} (22. Bxf5 $17 gxf5 23. Re2) 22... Qf7 {[%emt 0:01:35]} 23. Nb5 {[%emt 0:09:02]} Qd7 {[%emt 0:03:18]} ({Weaker is} 23... Bg7 24. Bxf5 Bxe5 25. Bxg6 Bd4+ 26. Nxd4 Qxg6 27. Rd1 $19) 24. Bxf5 {[%emt 0:13:59]} gxf5 {[%emt 0:00:40]} ({Not} 24... exf5 25. Nd6 Bg7 26. Rxe8+ $15) 25. Nd4 {[%emt 0:04:03][%cal Rd4e6]} Bg7 {[%emt 0:01:27]} 26. b5 {[%emt 0:02:55]} Bxe5 {[%emt 0:06:44]} 27. Qxe5 {[%emt 0:00:27]} Qc7 {[%emt 0:01:43] White must now prevent ...Qxe5.} 28. Qf6 {[%emt 0:00:51]} (28. Qe2 $142) 28... Qg7 {[%emt 0:01:08] Black is clearly winning.} 29. Qxg7+ {[%emt 0:00:21]} Kxg7 {[%emt 0:00:05][%mdl 4096] Endgame KRR-KRN} 30. Nc6 {[%emt 0:00:09]} a6 {[%emt 0:01:57]} 31. a4 {[%emt 0:00:03]} axb5 {[%emt 0:00:15]} 32. axb5 {[%emt 0:00:01]} Ra8 {[%emt 0:00:07]} 33. Ra6 {[%emt 0:01:43]} Rxa6 {[%emt 0:01:46]} 34. bxa6 {[%emt 0:00:50] KR-KN} Ra8 {[%emt 0:00:05]} 35. Nb4 {[%emt 0:01:32]} (35. a7 $142) 35... Kf7 {[%emt 0:01:11]} 36. Kf2 {[%emt 0:00:04]} Ke7 {[%emt 0:00:25]} 37. Ke3 {[%emt 0:00:05]} Kd6 {[%emt 0:00:05] Hoping for ...Kc5.} 38. Kd4 {[%emt 0:01:06]} Rc8 {[%emt 0:00:49] [#] ...Rc4+ is the strong threat.} 39. Ke3 {[%emt 0:06:20]} Rc4 {[%emt 0:02:39]} 40. a7 {[%emt 0:00:44]} Rc8 {[%emt 0:00:11]} 41. h3 {[%emt 0:32:13]} Ra8 {[%emt 0:30:20]} 42. Kd4 {[%emt 0:07:50] Weighted Error Value: White=0.77/Black=0.30} 0-1

[Event "44th Chess Olympiad Open 2022"]
[Site "Chennai"]
[Date "2022.07.30"]
[Round "2.60"]
[White "Mujahid Bin Yazeed"]
[Black "Jaiswal, Rupesh"]
[Result "0-1"]
[ECO "A02"]
[WhiteElo "1418"]
[BlackElo "2083"]
[Annotator "TA"]
[PlyCount "52"]
[EventDate "2022.07.29"]
[EventType "team-tourn"]
[EventCountry "IND"]
[SourceTitle "playchess.com"]
[Source "ChessBase"]
[SourceQuality "1"]
[WhiteTeam "Maldives"]
[BlackTeam "Nepal"]
[WhiteTeamCountry "MDV"]
[BlackTeamCountry "NEP"]
[TimeControl "40/5400+30:1800+30"]

{[%evp 9,52,0,13,-6,25,2,3,-36,-38,-55,-6,-44,-47,-41,-7,-109,-91,-64,-50,-106,0,-25,-29,-52,-48,-162,-144,-240,-225,-371,-153,-306,-256,-296,-292,-392,-379,-445,-435,-445,-422,-927,-935,-908,-787]} 1. f4 {[%emt 0:00:04]} c5 {[%emt 0:00:17]} 2. Nf3 {[%emt 0:00:08]} d6 {[%emt 0:00:07]} 3. g3 {[%emt 0:00:42]} g6 {[%emt 0:00:18]} 4. Bg2 {[%emt 0:00:13]} Bg7 {[%emt 0:00:07]} 5. O-O {[%emt 0:00:19]} Nc6 {[%emt 0:00:20]} 6. c3 {[%emt 0:01:05] A02: Bird's Opening.} Qb6 {[%emt 0:04:52]} 7. Kh1 {[%emt 0:01:33]} Nf6 {[%emt 0:06:27] [#]} 8. d4 $146 {[%emt 0:01:41] The position is equal.} ({Predecessor:} 8. Na3 Bg4 9. d3 h5 10. h3 Bd7 11. e4 h4 12. Nxh4 O-O-O 13. Rb1 Nh5 14. Qe1 {½-½ (35) Nguyen,A (1589)-Nguyen,H (2117) Ho Chi Minh City 2019}) 8... cxd4 {[%emt 0:04:29]} 9. cxd4 {[%emt 0:05:20]} Bg4 {[%emt 0:08:39]} (9... Bf5 $15 {should be considered.}) 10. e3 {[%emt 0:01:28]} O-O {[%emt 0:00:55][%cal Oe7e5]} 11. Nc3 {[%emt 0:03:14]} Rac8 {[%emt 0:03:24]} 12. Na4 {[%emt 0:04:00]} (12. h3 $11 {keeps the balance.} Bd7 13. Kh2) 12... Qa6 $17 {[%emt 0:01:25] Black is more active.} 13. Nc3 {[%emt 0:06:53]} Rfe8 {[%emt 0:08:35]} 14. h3 {[%emt 0:07:06]} (14. e4 $15) 14... Bxf3 {[%emt 0:03:54]} (14... Bf5 $17) 15. Qxf3 {[%emt 0:02:32]} e5 {[%emt 0:09:12]} 16. fxe5 {[%emt 0:05:23]} dxe5 {[%emt 0:01:01][%cal Bd6e5,Be5e4][%mdl 32]} 17. d5 {[%emt 0:02:57] [#]} (17. dxe5 $15 Nxe5 18. Qxb7) 17... e4 $1 $19 {[%emt 0:01:54]} 18. Qf4 {[%emt 0:03:47]} (18. Qd1 $17 Red8 19. g4 (19. Bxe4 $2 Nxe4 20. Nxe4 Rxd5 $19)) 18... Nb4 {[%emt 0:00:19] ...Nd3 is the strong threat.} 19. Kg1 {[%emt 0:11:07]} (19. g4 $142) 19... Qc4 {[%emt 0:12:27]} (19... Nd3 $19 {and Black stays clearly on top.} 20. Qh4 Qb6) 20. Rd1 $2 {[%emt 0:09:27]} (20. Bd2 $17 {is the only way for White.}) 20... Nbxd5 {[%emt 0:03:38]} 21. Nxd5 {[%emt 0:01:52]} Nxd5 {[%emt 0:00:07]} 22. Qf2 {[%emt 0:01:14]} Nb4 {[%emt 0:01:31]} 23. Bf1 {[%emt 0:00:49]} Qe6 {[%emt 0:01:19] Black is clearly winning.} ({But not} 23... Nd3 $2 24. Qe2 $19) 24. a3 {[%emt 0:01:02]} Rc2 {[%emt 0:02:22]} ({Don't blunder} 24... Nd3 $2 25. Bxd3 exd3 26. Rxd3 $19) 25. axb4 {[%emt 0:02:24]} (25. Rd2 $142 Nd3 26. Bxd3 exd3 27. Rxc2 dxc2 28. Qxc2) 25... Rxf2 {[%emt 0:00:18]} 26. Kxf2 {[%emt 0:00:06]} Qf5+ {[%emt 0:00:19] Weighted Error Value: White=0.86/Black=0.26 (precise)} 0-1

[Event "44th Chess Olympiad Open 2022"]
[Site "Chennai"]
[Date "2022.07.30"]
[Round "2.61"]
[White "Volpinari, Danilo"]
[Black "Christie, Joshua"]
[Result "0-1"]
[ECO "D02"]
[WhiteElo "1955"]
[BlackElo "2272"]
[Annotator "TA"]
[PlyCount "74"]
[EventDate "2022.07.29"]
[EventType "team-tourn"]
[EventCountry "IND"]
[SourceTitle "playchess.com"]
[Source "ChessBase"]
[SourceQuality "1"]
[WhiteTeam "San Marino"]
[BlackTeam "Jamaica"]
[WhiteTeamCountry "SMR"]
[BlackTeamCountry "JAM"]
[TimeControl "40/5400+30:1800+30"]

{[%evp 17,74,-4,0,-14,-10,-32,-33,-49,-35,-56,-30,-47,-29,-58,-36,-39,-37,-69,-63,-68,-54,-52,0,-143,-140,-153,-73,-128,-50,-101,-61,-58,-33,-50,-44,-116,-34,-69,-50,-71,-2,-14,0,-7,0,-82,-85,-83,-85,-100,-85,-1230,-1180,-1132,-1121,-1532,-1518,-1523,-1444]} 1. d4 {[%emt 0:00:07]} Nf6 {[%emt 0:00:14]} 2. Bf4 {[%emt 0:00:30]} e6 {[%emt 0:00:19]} 3. e3 {[%emt 0:02:24]} c5 {[%emt 0:00:35]} 4. c3 {[%emt 0:00:26]} d5 {[%emt 0:00:53]} 5. Nd2 {[%emt 0:01:51]} Bd6 {[%emt 0:00:59]} 6. Bg3 {[%emt 0:01:09]} O-O {[%emt 0:00:31]} 7. Ngf3 {[%emt 0:02:23]} b6 {[%emt 0:00:31]} 8. Bd3 {[%emt 0:04:02]} Bb7 {[%emt 0:01:26]} 9. Ne5 {[%emt 0:11:34]} Nc6 {[%emt 0:00:57]} 10. f4 {[%emt 0:03:48] D02: 1 d4 d5 2 Nf3 sidelines, including 2...Nf6 3 g3 and 2...Nf6 3 Bf4.} Ne7 {[%emt 0:05:36]} 11. O-O {[%emt 0:04:50]} Ne4 {[%emt 0:03:16]} 12. Bh4 {[%emt 0:05:40] Black is slightly better.} f6 {[%emt 0:03:28] aiming for ...Nf5.} 13. Nef3 {[%emt 0:02:35]} c4 {[%emt 0:05:02]} 14. Bc2 {[%emt 0:05:20]} b5 {[%emt 0:10:45]} 15. a3 {[%emt 0:03:55]} Qd7 {[%emt 0:00:55]} 16. Qe2 {[%emt 0:00:55] [#]} Nf5 $146 {[%emt 0:02:20]} ({Predecessor:} 16... Rfc8 17. Nxe4 dxe4 18. Nd2 f5 19. Bxe7 Bxe7 20. g4 Bd5 21. g5 g6 22. h4 Kf7 {½-½ (44) Rocchetti,M (1781)-Voltolini,G (2115) Arco 2019}) 17. g4 {[%emt 0:03:49]} Nxh4 {[%emt 0:02:21] Black is more active.} 18. Nxh4 {[%emt 0:00:02]} a5 {[%emt 0:04:51]} 19. Nhf3 {[%emt 0:15:54]} e5 {[%emt 0:04:08]} (19... Nxd2 $15 20. Qxd2 b4) 20. f5 {[%emt 0:03:28] [#]} (20. Nxe4 $11 {was the only way to keep the balance.} dxe4 21. Nd2) 20... Nxd2 $1 $17 {[%emt 0:03:04]} 21. Qxd2 {[%emt 0:00:30]} Qe7 {[%emt 0:01:00]} (21... e4 $142 22. Ne1 b4) 22. Rae1 {[%emt 0:03:06]} (22. dxe5 $142 fxe5 23. Qe2) 22... Rae8 {[%emt 0:07:10]} (22... e4 $17 23. Nh4 Bc6) 23. Nh4 {[%emt 0:04:09]} (23. dxe5 $15 fxe5 24. h3) 23... exd4 {[%emt 0:03:30]} 24. exd4 {[%emt 0:02:21]} Qf7 {[%emt 0:00:55]} 25. Ng2 {[%emt 0:04:57]} Qc7 {[%emt 0:02:10]} 26. Nh4 {[%emt 0:02:43]} ({White should play} 26. Ne3 $15) 26... Qd7 {[%emt 0:02:54]} (26... Rxe1 $17 27. Rxe1 Bc6) 27. Qf2 {[%emt 0:01:13]} Rxe1 {[%emt 0:00:51]} 28. Rxe1 {[%emt 0:00:34]} Re8 {[%emt 0:00:08]} (28... Qc7 $17) 29. Ng2 {[%emt 0:04:36]} b4 {[%emt 0:02:14]} 30. axb4 {[%emt 0:00:24]} axb4 {[%emt 0:00:03]} 31. Ra1 {[%emt 0:01:39]} (31. Rxe8+ $11 {keeps the balance.} Qxe8 32. Bd1) 31... Qc7 {[%emt 0:01:25]} 32. h3 {[%emt 0:01:10]} Bc6 {[%emt 0:11:14]} 33. Bd1 {[%emt 0:00:35]} Bg3 {[%emt 0:00:58]} 34. Qd2 {[%emt 0:01:37][%mdl 8192] Now White is beyond hope.} (34. Qf3 $17) 34... Bh2+ $19 {[%emt 0:00:23] A strong pair of Bishops. Black is clearly winning.} 35. Kf1 {[%emt 0:01:42]} Qg3 {[%emt 0:01:44]} 36. h4 {[%emt 0:00:57]} Qh3 {[%emt 0:00:48] [#] ...Bg3 is the strong threat.} 37. Qf2 {[%emt 0:01:29]} Bg3 {[%emt 0:00:16] Weighted Error Value: White=0.67/Black=0.21 (precise)} 0-1